bitfinex-derivatives/quotes_ETHF0:USTF0_20250314
["timestamp","ask_amount","ask_price","bid_price","bid_amount"]
[1741977115586,1.03496,1932.4,1932.3,1.3791]
[1741977115888,4.24276,1932.4,1932.3,3.74881]
[1741977116293,1.03496,1932.4,1932.3,3.74881]
[1741977116489,4.24276,1932.4,1932.3,2.7138]
[1741977117095,5.65356,1932.4,1932.3,2.7138]
[1741977117389,5.65356,1932.4,1932.3,1.3347]
[1741977118181,1.03501,1932.3,1932.2,0.00775936]
[1741977118383,2.40661,1932.3,1932.2,1.42945936]
[1741977120191,2.40661,1932.3,1932.2,2.46451936]
[1741977120689,1.3716,1932.3,1932.2,2.46451936]
[1741977120891,3.2078,1932.4,1932.3,1.03501]
[1741977121094,1.03496,1932.4,1932.3,2.40541]
[1741977121291,1.03501,1932.3,1932.2,0.00775936]
[1741977121485,2.38771,1932.3,1932.2,2.41321936]
[1741977122783,1.3527,1932.3,1932.2,2.41321936]
[1741977122988,4.24276,1932.4,1932.3,1.03501]
[1741977123187,2.38766,1932.4,1932.3,2.40541]
[1741977123390,5.59546,1932.4,1932.3,2.40541]
[1741977123889,2.38766,1932.4,1932.3,1.3704]
[1741977124097,5.59546,1932.4,1932.3,1.3704]
[1741977124294,5.59546,1932.4,1932.3,2.40541]
[1741977124496,2.38766,1932.4,1932.3,1.3704]
[1741977124695,5.59546,1932.4,1932.3,1.3704]
[1741977125100,1.03501,1932.3,1932.2,0.00775936]
[1741977125393,2.58673,1932.9,1932.4,1.03492]
[1741977125586,5.7944,1933.0,1932.5,2.7435]
[1741977125791,3.2078,1933.0,1932.6,1.3539]
[1741977126185,6.7238,1933.2,1932.8,1.03472]
[1741977126389,1.03465,1933.0,1932.9,2.0776]
[1741977127387,3.2078,1933.2,1933.1,1.03458]
[1741977127594,4.24237,1933.2,1933.1,1.03458]
[1741977127797,4.24237,1933.2,1933.0,1.9752]
[1741977127798,4.24237,1933.2,1933.0,3.0098]
[1741977127995,4.24237,1933.2,1933.1,2.34388]
[1741977128196,3.2078,1933.2,1933.1,2.34388]
[1741977128598,4.24999936,1933.4,1933.3,1.03447]
[1741977128898,3.21555936,1933.4,1933.3,1.03447]
[1741977129103,1.04217936,1933.4,1933.3,1.03447]
[1741977129300,0.00775936,1933.4,1933.3,1.03447]
[1741977129602,1.04217936,1933.4,1933.2,1.03449]
[1741977129804,0.00775936,1933.4,1933.3,2.41107]
[1741977130202,1.04217936,1933.4,1933.3,2.41107]
[1741977130903,0.00775936,1933.4,1933.3,2.41107]
[1741977133199,1.04217936,1933.4,1933.3,1.3766]
[1741977133405,1.03458,1933.1,1933.0,0.6659]
[1741977133705,1.03458,1933.1,1932.9,0.7237]
[1741977133706,1.03464,1933.0,1932.9,0.7237]
[1741977133903,2.58647,1933.1,1932.8,1.03474]
[1741977134100,1.03474,1932.8,1932.7,1.03476]
[1741977134906,1.4132,1933.0,1932.7,1.3544]
[1741977135202,1.03457,1933.2,1932.8,2.58686]
[1741977135402,4.621,1933.3,1932.9,1.3544]
[1741977135604,1.03457,1933.2,1933.0,1.7003]
[1741977135900,1.03457,1933.2,1933.1,1.3388]
[1741977136107,2.44771,1933.3,1933.1,2.37334]
[1741977136300,1.4132,1933.3,1933.1,3.03044]
[1741977136504,1.4132,1933.3,1933.2,1.3388]
[1741977136505,2.44767,1933.3,1933.2,1.3388]
[1741977138005,2.44767,1933.3,1933.2,2.37333]
[1741977138205,1.04218936,1933.4,1933.3,1.03447]
[1741977138505,1.03447,1933.3,1933.2,2.37329]
[1741977139207,1.03447,1933.3,1933.2,1.3388]
[1741977139407,4.24227,1933.3,1933.2,1.3388]
[1741977140002,5.63207,1933.3,1933.2,1.3388]
[1741977140605,1.03458,1933.1,1933.0,1.70029]
[1741977140808,1.3898,1933.2,1933.1,1.03458]
[1741977141206,1.04218936,1933.4,1933.3,1.03447]
[1741977142209,0.00775936,1933.4,1933.3,1.03447]
[1741977142404,0.00775936,1933.4,1933.3,1.75087]
[1741977142803,1.04217936,1933.4,1933.3,0.7164]
[1741977142999,1.03447,1933.3,1933.2,1.3512]
[1741977143203,2.38437,1933.3,1933.2,1.3512]
[1741977143408,1.03458,1933.1,1933.0,1.7003]
[1741977143611,1.03458,1933.1,1933.0,3.0515]
[1741977143907,1.03458,1933.1,1933.0,1.3512]
[1741977144304,2.38448,1933.1,1933.0,2.38584]
[1741977144709,2.38448,1933.1,1933.0,1.3512]
[1741977144910,2.38448,1933.1,1933.0,2.38584]
[1741977145306,3.2078,1933.2,1933.1,1.03458]
[1741977145510,1.03451,1933.3,1933.2,1.03453]
[1741977145713,1.03451,1933.3,1933.2,1.364]
[1741977146411,2.43971,1933.3,1933.2,1.364]
[1741977146808,2.43971,1933.3,1933.2,2.39853]
[1741977147111,1.03451,1933.3,1933.2,2.39853]
[1741977148407,0.00775936,1933.4,1933.3,1.03447]
[1741977149106,0.00775936,1933.4,1933.3,2.36947]
[1741977149311,1.04217936,1933.4,1933.3,2.36947]
[1741977150711,1.04217936,1933.4,1933.3,1.335]
[1741977151307,1.04217936,1933.4,1933.1,1.3376]
[1741977151308,1.03453,1933.2,1933.1,2.37215]
[1741977151517,1.03453,1933.2,1933.1,1.3376]
[1741977151708,1.03453,1933.2,1933.1,0.6706]
[1741977151911,1.03458,1933.1,1933.0,2.40162]
[1741977152109,1.03458,1933.1,1933.0,1.03462]
[1741977152414,2.44235,1933.2,1933.1,1.03458]
[1741977152609,1.03464,1933.0,1932.9,3.2078]
[1741977153108,1.03464,1933.0,1932.9,4.24249]
[1741977155913,1.03464,1933.0,1932.9,3.2078]
[1741977156910,1.03464,1933.0,1932.9,4.24249]
[1741977157317,1.03464,1933.0,1932.9,3.2078]
[1741977157518,1.03464,1933.0,1932.9,4.24249]
[1741977158023,1.4078,1933.1,1933.0,1.03464]
[1741977158221,4.54857,1933.2,1933.1,1.03458]
[1741977158723,1.03464,1933.1,1933.0,1.03459]
[1741977159921,2.38597,1933.2,1933.1,1.03458]
[1741977160124,1.03457,1933.2,1933.1,1.03458]
[1741977160627,0.64890155,1933.4,1933.3,1.03447]
[1741977160928,0.00775936,1933.4,1933.3,1.03447]
[1741977161121,1.04217936,1933.4,1933.3,1.03447]
[1741977161321,0.00775936,1933.4,1933.3,1.03447]
[1741977163133,0.00775936,1933.4,1933.3,4.24227]
[1741977163720,1.03447,1933.3,1933.2,5.94399]
[1741977163927,1.03447,1933.3,1933.2,1.3955]
[1741977164234,2.34927,1933.3,1933.2,2.43003]
[1741977165422,1.3148,1933.3,1933.2,2.43003]
[1741977165626,0.00775936,1933.4,1933.3,1.03447]
[1741977165825,2.35698936,1933.4,1933.3,1.03447]
[1741977166029,0.00775936,1933.4,1933.3,1.03447]
[1741977166223,0.00775936,1933.4,1933.3,4.24227]
[1741977166521,1.04217936,1933.4,1933.3,1.03447]
[1741977166929,1.04217936,1933.4,1933.3,2.41077]
[1741977167626,1.04217936,1933.4,1933.3,1.3763]
[1741977168632,2.48707936,1933.4,1933.3,1.3763]
[1741977169434,2.48707936,1933.4,1933.3,1.3763]
[1741977170926,2.48707936,1933.4,1933.3,2.41077]
[1741977171127,1.04217936,1933.4,1933.3,2.41077]
[1741977172033,0.00775936,1933.4,1933.3,2.41077]
[1741977172227,1.04217936,1933.4,1933.3,2.41077]
[1741977172433,0.00775936,1933.4,1933.3,2.41077]
[1741977172835,3.2078,1933.9,1933.5,2.58583]
[1741977173029,4.585,1933.9,1933.6,2.0816]
[1741977173224,1.03421,1933.8,1933.7,2.39471]
[1741977173931,1.03421,1933.8,1933.7,1.3605]
[1741977174328,2.41141,1933.8,1933.7,1.3605]
[1741977174728,2.41141,1933.8,1933.7,2.39476]
[1741977175333,2.41141,1933.8,1933.6,0.72885936]
[1741977175334,1.03426,1933.7,1933.6,0.00775936]
[1741977175636,5.61266,1933.7,1933.6,0.00775936]
[1741977176230,1.03447,1933.3,1933.2,0.7207]
[1741977176429,1.03447,1933.3,1933.2,2.45573]
[1741977176631,2.58603,1933.5,1933.2,1.4212]
[1741977176834,1.03446,1933.4,1933.3,1.03442]
[1741977177238,1.0344,1933.5,1933.4,1.03436]
[1741977178140,2.40496,1933.6,1933.5,1.03437]
[1741977178340,1.03436,1933.6,1933.5,1.03437]
[1741977178840,1.03437,1933.5,1933.4,2.36838]
[1741977179539,1.03436,1933.6,1933.5,1.03434]
[1741977179731,1.03436,1933.6,1933.5,2.36834]
[1741977180336,1.03436,1933.6,1933.5,2.36837]
[1741977180530,1.03436,1933.6,1933.5,1.334]
[1741977180731,1.03436,1933.6,1933.5,2.36837]
[1741977181128,2.40026,1933.6,1933.5,2.36837]
[1741977181533,2.40026,1933.6,1933.5,1.334]
[1741977181841,2.40026,1933.6,1933.5,2.36837]
[1741977182435,2.40026,1933.6,1933.5,1.334]
[1741977182634,2.40026,1933.6,1933.5,2.36837]
[1741977183541,1.03436,1933.6,1933.5,2.36837]
[1741977183737,5.94658,1933.7,1933.6,1.03431]
[1741977184038,5.94658,1933.7,1933.6,3.09711]
[1741977184540,1.03428,1933.7,1933.6,3.09711]
[1741977185239,1.03425,1933.8,1933.7,1.03421]
[1741977185541,1.03425,1933.8,1933.7,3.11231]
[1741977187036,1.03425,1933.8,1933.7,2.0781]
[1741977187236,2.35715,1933.8,1933.7,2.0781]
[1741977187748,2.35715,1933.8,1933.7,3.11236]
[1741977188543,2.35715,1933.8,1933.7,2.0781]
[1741977189041,2.35715,1933.8,1933.7,3.11236]
[1741977190334,1.03425,1933.8,1933.7,3.11236]
[1741977190744,0.00775936,1933.9,1933.8,1.03421]
[1741977190944,1.04190936,1933.9,1933.8,2.36981]
[1741977191745,1.04190936,1933.9,1933.8,1.3356]
[1741977191948,4.24970936,1933.9,1933.8,1.3356]
[1741977192149,1.03426,1933.7,1933.6,0.6956]
[1741977192341,1.03426,1933.7,1933.6,1.3356]
[1741977192737,2.44526,1933.7,1933.6,1.3356]
[1741977192943,1.03442,1933.4,1933.3,1.3268]
[1741977193149,1.03447,1933.3,1933.2,0.00775936]
[1741977194045,1.03447,1933.3,1933.2,1.04228936]
[1741977194349,1.03447,1933.3,1933.2,2.35358936]
[1741977194544,2.58602,1933.5,1933.4,1.03437]
[1741977194545,1.03439,1933.5,1933.4,1.03437]
[1741977195248,1.03439,1933.5,1933.4,1.70917]
[1741977195436,1.03436,1933.6,1933.5,1.03431]
[1741977195638,1.03428,1933.7,1933.6,1.03427]
[1741977196050,1.03428,1933.7,1933.6,2.34557]
[1741977196843,4.24204,1933.8,1933.7,1.03426]
[1741977197245,1.03426,1933.7,1933.6,1.3113]
[1741977197448,1.03426,1933.7,1933.6,2.34561]
[1741977197752,4.24204,1933.8,1933.7,1.03426]
[1741977197948,0.00775936,1933.9,1933.8,1.03421]
[1741977198144,1.04190936,1933.9,1933.8,2.37401]
[1741977199149,1.04190936,1933.9,1933.8,1.3398]
[1741977200548,1.04190936,1933.9,1933.8,2.6984]
[1741977200764,1.04190936,1933.9,1933.8,1.3586]
[1741977201168,2.48570936,1933.9,1933.8,1.3586]
[1741977201368,0.00775936,1933.9,1933.8,2.39281]
[1741977201566,1.04190936,1933.9,1933.8,1.3586]
[1741977201771,1.04190936,1933.9,1933.8,2.39281]
[1741977202272,1.45155936,1933.9,1933.8,2.39281]
[1741977202673,1.04190936,1933.9,1933.8,2.39281]
[1741977204070,1.04190936,1933.9,1933.8,1.3586]
[1741977205576,2.37710936,1933.9,1933.8,1.3586]
[1741977206170,2.37710936,1933.9,1933.8,2.39281]
[1741977207477,2.37710936,1933.9,1933.8,1.3586]
[1741977207775,2.37710936,1933.9,1933.8,2.39281]
[1741977207977,2.37710936,1933.9,1933.8,1.3586]
[1741977208473,0.00775936,1933.9,1933.8,2.39281]
[1741977208681,3.2078,1934.2,1934.1,1.03405]
[1741977208983,1.0341,1934.1,1934.0,1.03406]
[1741977209165,1.0341,1934.1,1934.0,3.17106]
[1741977209369,5.63034,1934.2,1934.1,1.03405]
[1741977209675,4.24184,1934.2,1934.1,2.45175]
[1741977209981,4.24184,1934.2,1934.1,1.4177]
[1741977210370,4.24184,1934.2,1934.1,2.45175]
[1741977210980,3.2078,1934.2,1934.1,2.45175]
[1741977211378,0.00775936,1934.3,1934.2,1.03399]
[1741977211579,0.00775936,1934.3,1934.2,1.73229]
[1741977211774,0.00775936,1934.3,1934.2,0.6983]
[1741977211975,1.04171936,1934.3,1934.2,1.73229]
[1741977212679,2.36571936,1934.3,1934.2,1.73229]
[1741977212874,1.04171936,1934.3,1934.2,1.73229]
[1741977215274,1.04171936,1934.3,1933.7,5.998]
[1741977215275,3.21555936,1934.3,1933.7,5.998]
[1741977215582,1.03426,1933.7,1933.6,1.4092]
[1741977215774,1.03426,1933.7,1933.6,2.44351]
[1741977215973,8.68073,1934.0,1933.7,1.03422]
[1741977215974,1.03424,1933.8,1933.7,1.03422]
[1741977216170,1.03426,1933.7,1933.6,2.44347]
[1741977217376,1.03426,1933.7,1933.6,1.4092]
[1741977217683,1.03431,1933.6,1933.5,1.4047]
[1741977219676,1.034,1934.2,1933.5,10.6225]
[1741977219879,3.21555936,1934.3,1933.9,3.2078]
[1741977219880,0.00775936,1934.3,1933.9,3.2078]
[1741977220074,1.04172936,1934.3,1934.0,2.7083]
[1741977220268,0.00775936,1934.3,1934.0,2.7083]
[1741977220466,1.04172936,1934.3,1934.0,2.7083]
[1741977220678,1.04172936,1934.3,1934.1,1.03405]
[1741977220879,1.04172936,1934.3,1934.2,1.3925]
[1741977224977,1.04172936,1934.3,1934.2,2.42649]
[1741977225178,0.00775936,1934.3,1934.2,2.42649]
[1741977225681,1.04169936,1934.3,1934.2,2.42649]
[1741977226389,1.04169936,1934.3,1934.2,1.3925]
[1741977226687,1.04169936,1934.3,1934.2,2.42649]
[1741977227187,1.04169936,1934.3,1934.2,1.3925]
[1741977227883,3.2078,1935.2,1934.2,10.6103]
[1741977228079,3.2078,1935.2,1935.1,1.03351]
[1741977228383,1.03353,1935.1,1934.9,1.03358]
[1741977228785,1.03353,1935.1,1935.0,1.3607]
[1741977228981,1.4471,1935.2,1935.0,1.3607]
[1741977229485,2.48057,1935.2,1935.0,2.39423]
[1741977229985,2.48057,1935.2,1935.0,1.3607]
[1741977230287,2.48057,1935.2,1935.0,2.39424]
[1741977230486,1.4471,1935.2,1935.0,1.3607]
[1741977230684,2.48058,1935.2,1935.0,1.3607]
[1741977230981,1.03351,1935.1,1935.0,1.3607]
[1741977231282,2.45551,1935.1,1935.0,1.3607]
[1741977232386,2.45551,1935.1,1935.0,2.39427]
[1741977232580,2.45551,1935.1,1935.0,1.3607]
[1741977233585,2.45551,1935.1,1935.0,2.39427]
[1741977233977,2.45551,1935.1,1935.0,1.3607]
[1741977235587,1.03362,1934.9,1934.8,0.00775936]
[1741977236381,2.37582,1934.9,1934.8,0.00775936]
[1741977237186,2.37582,1934.9,1934.8,1.43485936]
[1741977237781,2.37582,1934.9,1934.8,2.46852936]
[1741977238281,5.974,1935.1,1934.8,1.43485936]
[1741977238477,5.974,1935.1,1935.0,1.03357]
[1741977238478,2.37578,1935.1,1935.0,1.03357]
[1741977238681,1.03357,1935.0,1934.9,3.80507]
[1741977240088,2.37575,1935.1,1935.0,1.03357]
[1741977240389,2.37575,1935.1,1935.0,2.48427]
[1741977240586,3.2078,1935.4,1935.0,1.4507]
[1741977240886,1.03346,1935.2,1935.1,2.48419]
[1741977241183,1.03346,1935.2,1935.1,2.48421]
[1741977242483,1.03346,1935.2,1935.1,1.4507]
[1741977243589,1.03346,1935.2,1935.1,2.48418]
[1741977245385,1.3184,1935.3,1935.2,1.03346]
[1741977245386,1.03341,1935.3,1935.2,1.03346]
[1741977245691,1.03341,1935.3,1935.2,2.48296]
[1741977247791,1.03341,1935.3,1935.2,2.48291]
[1741977248994,1.03341,1935.3,1935.2,1.4495]
[1741977249194,1.03341,1935.3,1935.2,2.48296]
[1741977250188,1.03341,1935.4,1935.3,1.03341]
[1741977250391,1.03341,1935.4,1935.3,3.81121]
[1741977253298,1.03341,1935.4,1935.3,2.7778]
[1741977253498,1.03341,1935.4,1935.3,3.81121]
[1741977254899,2.38025,1935.5,1935.4,1.03335]
[1741977255094,4.24107,1935.6,1935.5,1.0333]
[1741977257397,1.03327,1935.6,1935.5,1.0333]
[1741977258204,1.03327,1935.6,1935.5,2.4651]
[1741977258901,1.03327,1935.6,1935.5,1.4318]
[1741977259301,1.03327,1935.6,1935.5,2.4651]
[1741977261600,2.40954,1935.7,1935.6,1.03325]
[1741977261805,1.03324,1935.7,1935.6,3.19755]
[1741977263007,1.03324,1935.7,1935.6,2.1643]
[1741977263907,1.03324,1935.7,1935.6,3.19755]
[1741977264599,1.03324,1935.7,1935.6,2.1643]
[1741977264804,4.24104,1935.7,1935.6,1.4391]
[1741977265003,4.95174,1935.7,1935.6,1.4391]
[1741977265202,4.24104,1935.7,1935.6,1.4391]
[1741977266598,4.24104,1935.7,1935.6,2.47235]
[1741977266797,2.07839623,1935.8,1935.6,2.47235]
[1741977266994,1.03319,1935.8,1935.7,2.37939]
[1741977267208,1.03319,1935.8,1935.7,1.3462]
[1741977267707,1.03319,1935.8,1935.7,2.0084]
[1741977268009,1.03319,1935.8,1935.7,3.04159]
[1741977270110,4.24092,1935.9,1935.8,1.03314]
[1741977270310,4.24092,1935.9,1935.8,3.06244]
[1741977270513,4.24092,1935.9,1935.8,2.0293]
[1741977273609,4.24092,1935.9,1935.8,3.06244]
[1741977273809,4.24092,1935.9,1935.8,2.0293]
[1741977274014,4.24092,1935.9,1935.8,3.06244]
[1741977274214,4.24092,1935.9,1935.8,2.0293]
[1741977274612,4.24092,1935.9,1935.8,3.06244]
[1741977275312,1.03308,1936.0,1935.9,1.03304]
[1741977275516,1.03308,1936.0,1935.9,2.41634]
[1741977276309,1.03308,1936.0,1935.9,1.3833]
[1741977277015,1.03303,1936.0,1935.9,1.3833]
[1741977277608,1.03303,1936.0,1935.9,2.41639]
[1741977278011,1.03303,1936.0,1935.9,1.3833]
[1741977280813,1.03303,1936.0,1935.9,2.41639]
[1741977281018,1.03303,1936.0,1935.9,1.3833]
[1741977284521,1.03303,1936.0,1935.9,2.41639]
[1741977284720,1.03303,1936.0,1935.9,1.3833]
[1741977285616,1.03303,1936.0,1935.9,2.41639]
[1741977285822,1.03303,1936.0,1935.9,1.3833]
[1741977286928,1.03303,1936.0,1935.9,2.41639]
[1741977287321,1.03303,1936.0,1935.9,1.3833]
[1741977287617,1.03303,1936.0,1935.9,2.41639]
[1741977288019,1.03303,1936.0,1935.9,1.3833]
[1741977288927,1.03303,1936.0,1935.9,2.41639]
[1741977289517,1.03303,1936.0,1935.9,1.3833]
[1741977289723,1.03303,1936.0,1935.9,2.41639]
[1741977290625,1.03303,1936.0,1935.9,1.3833]
[1741977291830,1.03303,1936.0,1935.9,2.41639]
[1741977292221,4.24083,1936.0,1935.9,2.41639]
[1741977292425,4.24083,1936.0,1935.9,1.3833]
[1741977292621,1.03341,1935.4,1935.2,28.652]
[1741977292823,1.03341,1935.4,1935.3,0.6759]
[1741977293125,1.03341,1935.4,1935.3,1.70931]
[1741977293927,1.03341,1935.4,1935.3,3.82541]
[1741977294616,1.03341,1935.4,1935.3,2.792]
[1741977294822,2.35591,1935.4,1935.3,2.792]
[1741977297231,5.56371,1935.4,1935.3,1.4454]
[1741977300334,1.03341,1935.3,1935.2,9.36e-06]
[1741977300633,3.10806401,1935.3,1935.2,9.36e-06]
[1741977300831,3.74811375,1935.3,1935.2,9.36e-06]
[1741977301333,1.03341,1935.3,1935.2,1.03346936]
[1741977301831,1.03341,1935.3,1935.2,9.36e-06]
[1741977302026,1.03341,1935.3,1935.2,1.36180936]
[1741977302027,2.36131,1935.3,1935.2,1.36180936]
[1741977302728,1.03341,1935.3,1935.2,1.36180936]
[1741977303231,2.36131,1935.3,1935.2,9.36e-06]
[1741977303426,3.07851,1935.3,1935.2,9.36e-06]
[1741977304033,1.03341,1935.3,1935.2,9.36e-06]
[1741977304233,1.03341,1935.3,1935.2,0.69110936]
[1741977304940,1.03341,1935.3,1935.2,2.11290936]
[1741977305134,1.03341,1935.3,1935.2,3.14636936]
[1741977305537,3.2078,1935.4,1935.3,1.03341]
[1741977305830,3.2078,1935.9,1935.3,4.6296]
[1741977306135,1.4075,1936.0,1935.5,3.2078]
[1741977306432,1.03309,1935.9,1935.7,3.2078]
[1741977306638,1.03309,1935.9,1935.8,2.0542]
[1741977307938,1.03309,1935.9,1935.8,3.08734]
[1741977308532,1.03309,1935.9,1935.8,2.0542]
[1741977309135,1.04082,1936.0,1935.9,1.03309]
[1741977309443,1.04082,1936.0,1935.9,1.3826]
[1741977310148,1.04082,1936.0,1935.9,2.41569]
[1741977310357,1.04082,1936.0,1935.9,1.3826]
[1741977310750,0.00775,1936.0,1935.9,2.41569]
[1741977310953,0.00775,1936.0,1935.9,5.91969]
[1741977311143,8.55595,1936.5,1936.2,1.0329]
[1741977311144,4.24071,1936.3,1936.2,1.0329]
[1741977311446,3.98275,1936.5,1936.1,1.03294]
[1741977311447,1.03295,1936.2,1936.1,1.03294]
[1741977311647,1.03295,1936.2,1936.1,2.36074]
[1741977311847,1.03289,1936.3,1936.2,1.03288]
[1741977312348,1.03289,1936.3,1936.1,1.3278]
[1741977312349,1.03286,1936.4,1936.3,1.03285]
[1741977312648,1.03292,1936.3,1936.2,1.03289]
[1741977312848,1.03292,1936.3,1936.2,4.54464936]
[1741977313143,1.03292,1936.3,1936.2,0.00775936]
[1741977313541,2.47842,1936.3,1936.2,0.00775936]
[1741977317447,2.47842,1936.3,1936.2,1.34485936]
[1741977318152,1.03292,1936.3,1936.2,2.37778936]
[1741977318447,1.03292,1936.3,1936.2,1.34485936]
[1741977318652,1.03292,1936.3,1936.2,2.37778936]
[1741977318853,1.03287,1936.4,1936.3,1.03284]
[1741977319053,1.03287,1936.4,1936.3,3.81014]
[1741977319251,5.78934,1936.8,1936.3,2.7773]
[1741977319557,1.0328,1936.5,1936.4,2.47057]
[1741977319748,1.03274,1936.6,1936.5,1.03271]
[1741977320053,1.03274,1936.6,1936.5,2.47051]
[1741977320253,0.6596,1936.9,1936.5,7.52259]
[1741977320444,1.03261,1936.8,1936.7,1.03264]
[1741977320642,1.03261,1936.8,1936.7,0.6592]
[1741977320851,1.03261,1936.8,1936.7,2.39256]
[1741977321255,1.03261,1936.8,1936.7,5.60033]
[1741977321955,1.03261,1936.8,1936.7,1.3599]
[1741977322158,1.03261,1936.8,1936.7,2.39256]
[1741977322450,1.03261,1936.8,1936.7,2.8086]
[1741977322656,1.03261,1936.8,1936.7,3.84126]
[1741977322850,1.03261,1936.8,1936.7,2.8086]
[1741977323353,2.39061,1936.8,1936.7,1.4487]
[1741977323748,1.03261,1936.8,1936.7,1.4487]
[1741977327257,1.03261,1936.8,1936.7,2.48136]
[1741977327653,1.03261,1936.8,1936.7,1.4487]
[1741977328146,1.03261,1936.8,1936.7,2.1036]
[1741977329044,2.41901,1936.8,1936.7,1.4487]
[1741977330256,2.41901,1936.8,1936.4,0.6538]
[1741977330557,1.03277,1936.5,1936.4,0.6538]
[1741977331551,1.03277,1936.5,1936.4,1.9694]
[1741977332653,1.03277,1936.5,1936.4,3.00222]
[1741977332853,1.03277,1936.5,1936.4,1.9694]
[1741977333261,1.03274,1936.6,1936.5,1.03271]
[1741977333459,1.03271,1936.7,1936.6,1.03271]
[1741977333860,1.03264,1936.8,1936.7,1.03261]
[1741977334054,1.03264,1936.8,1936.7,1.73191]
[1741977335155,1.03264,1936.8,1936.7,0.6993]
[1741977335360,1.03266,1936.7,1936.6,1.3156]
[1741977335956,1.03266,1936.7,1936.6,2.34831]
[1741977337263,1.03266,1936.7,1936.6,1.3156]
[1741977337664,2.35166,1936.7,1936.6,1.3156]
[1741977337864,2.35166,1936.7,1936.6,2.34831]
[1741977338360,0.63762405,1936.9,1936.6,1.3156]
[1741977338564,1.03259,1936.9,1936.8,1.03256]
[1741977338767,1.03261,1936.8,1936.7,2.34851]
[1741977340561,1.03261,1936.8,1936.7,1.3159]
[1741977341060,1.03261,1936.8,1936.7,2.34856]
[1741977341665,1.03261,1936.8,1936.7,2.34854]
[1741977343157,1.03261,1936.8,1936.7,1.3159]
[1741977345257,1.03277,1936.5,1936.4,0.6538]
[1741977345464,1.03277,1936.5,1936.4,2.1064]
[1741977345864,2.38597,1936.5,1936.4,1.4526]
[1741977347058,2.38597,1936.5,1936.2,0.66515936]
[1741977347059,1.3532,1936.5,1936.2,0.66515936]
[1741977347254,1.03287,1936.3,1936.2,1.44615936]
[1741977347457,1.03287,1936.3,1936.2,0.00775936]
[1741977347663,3.86847,1936.3,1936.2,0.00775936]
[1741977348156,1.03303,1936.0,1935.9,1.4384]
[1741977348764,2.48423,1936.0,1935.9,1.4384]
[1741977351773,1.03309,1935.9,1935.8,0.00775936]
[1741977351968,5.62769,1935.9,1935.8,0.00775936]
[1741977354268,1.03309,1935.9,1935.8,2.36279936]
[1741977355170,5.79809936,1936.1,1935.8,2.36279936]
[1741977355171,1.03307,1936.0,1935.9,1.03303]
[1741977356770,1.03309,1935.9,1935.8,1.32965936]
[1741977357472,1.3587,1936.0,1935.8,1.32965936]
[1741977357665,1.03309,1936.0,1935.8,1.32965936]
[1741977357861,1.03307,1936.0,1935.9,1.03304]
[1741977359375,0.00775936,1936.1,1936.0,1.03303]
[1741977359765,0.00775936,1936.1,1936.0,8.42463]
[1741977359968,1.03276,1936.6,1936.5,1.03273]
[1741977360378,1.03282,1936.4,1936.3,5.95414]
[1741977360679,1.03282,1936.4,1936.3,4.53384]
[1741977360983,1.03282,1936.4,1936.3,3.501]
[1741977361176,1.03287,1936.3,1936.2,4.24069]
[1741977361972,1.03277,1936.6,1936.5,1.03274]
[1741977362370,1.03277,1936.6,1936.2,2.58229]
[1741977362371,1.03281,1936.5,1936.4,1.03278]
[1741977362570,1.03275,1936.6,1936.5,1.03273]
[1741977363080,1.03281,1936.5,1936.4,1.03278]
[1741977365373,1.03285,1936.4,1936.3,1.03281]
[1741977365781,1.03281,1936.5,1936.4,1.03278]
[1741977366082,1.03275,1936.6,1936.5,1.03272]
[1741977366676,1.03277,1936.5,1936.4,1.68888]
[1741977367582,1.03277,1936.5,1936.4,0.6561]
[1741977369189,1.03277,1936.5,1936.4,1.68892]
[1741977369685,1.03274,1936.6,1936.5,1.0327]
[1741977372088,1.03277,1936.5,1936.4,4.1561]
[1741977372386,1.03277,1936.5,1936.4,0.6561]
[1741977373287,1.03277,1936.5,1936.4,1.68892]
[1741977373480,1.03277,1936.5,1936.4,0.6561]
[1741977373789,1.03277,1936.5,1936.4,1.68892]
[1741977374084,1.03276,1936.6,1936.5,1.03274]
[1741977375381,1.03269,1936.7,1936.6,1.03266]
[1741977375778,1.03262,1936.8,1936.7,1.03261]
[1741977375977,3.2078,1937.0,1936.7,2.58163]
[1741977376187,3.2078,1937.0,1936.8,0.6965]
[1741977376489,1.03255,1936.9,1936.8,1.72907]
[1741977377086,1.03254,1937.0,1936.9,1.03252]
[1741977377386,1.03237,1937.3,1937.2,1.03236]
[1741977377986,1.03237,1937.3,1937.2,3.12906]
[1741977378684,1.03237,1937.3,1937.2,2.0967]
[1741977380586,1.03237,1937.3,1937.2,1.4367]
[1741977380783,1.4006,1937.3,1937.1,0.00775936]
[1741977380984,1.03239,1937.2,1937.1,0.00775936]
[1741977381487,5.58729,1937.2,1937.1,0.00775936]
[1741977381685,2.37949,1937.2,1937.1,0.00775936]
[1741977382385,1.03238,1937.3,1937.2,1.03239]
[1741977382694,1.03238,1937.3,1937.2,1.71799]
[1741977382891,11.76229,1937.6,1937.2,0.6856]
[1741977383086,1.3578,1937.6,1937.3,3.2078]
[1741977383284,3.8684,1937.8,1937.4,4.8803]
[1741977383486,1.03222,1937.6,1937.5,1.3813]
[1741977383894,1.03222,1937.6,1937.5,2.41353]
[1741977384191,3.2078,1938.1,1937.5,4.5891]
[1741977384385,6.26843,1938.1,1937.6,4.67546]
[1741977384582,1.03207,1937.8,1937.7,4.8803]
[1741977384785,1.03207,1937.8,1937.7,1.3813]
[1741977385185,3.2078,1938.1,1937.7,1.3813]